[Event "NC World Masters 2022"]
[Site "Dortmund"]
[Date "2022.07.20"]
[Round "3.2"]
[White "Kollars, Dmitrij"]
[Black "Adams, Michael"]
[Result "1-0"]
[ECO "C47"]
[WhiteElo "2648"]
[BlackElo "2696"]
[Annotator "TA"]
[PlyCount "87"]
[EventDate "2022.07.18"]
[EventType "tourn"]
[EventCountry "GER"]
[SourceTitle "playchess.com"]
[Source "ChessBase"]
[SourceQuality "1"]
[TimeControl "40/5400+30:1800+30"]

{[%evp 10,87,0,-21,0,0,0,0,13,20,80,24,33,43,45,50,45,51,85,69,69,38,32,22,64,61,96,82,83,94,101,92,115,116,119,110,123,112,173,164,174,162,191,202,203,187,292,204,189,193,201,168,168,168,166,168,166,156,166,172,157,158,533,493,510,454,478,371,339,335,475,464,468,450,444,408,688,685,1764,1767]} 1. e4 {[%emt 0:00:11]} e5 {[%emt 0:00:07]} 2. Nf3 {[%emt 0:00:20]} Nc6 {[%emt 0:00:07]} 3. Nc3 {[%emt 0:00:15]} Nf6 {[%emt 0:01:48]} 4. d4 {[%emt 0:00:29]} exd4 {[%emt 0:00:11]} 5. Nxd4 {[%emt 0:00:06]} Bb4 {[%emt 0:00:52]} 6. f3 {[%emt 0:00:15]} d6 {[%emt 0:02:32] C47: Scotch Four Knights and Four Knights with 4 g3.} 7. Bb5 {[%emt 0:00:28]} Bd7 {[%emt 0:02:01]} 8. Bxc6 {[%emt 0:00:30] [#]} bxc6 $146 {[%emt 0:10:43] The position is equal.} (8... Bxc3+ $5 9. bxc3 bxc6 $11) ({Predecessor:} 8... Bxc6 9. O-O O-O 10. Bd2 Bc5 11. Be3 Qe7 12. Kh1 Bd7 13. Re1 Rad8 14. Qd3 Rfe8 {0-1 (61) Trglavcnik,L (1768)-Kovac,P (1398) Trogir 2019}) 9. Qd3 {[%emt 0:00:44]} Kf8 {[%emt 0:04:15]} (9... c5 $11 {keeps the balance.} 10. Nde2 O-O) 10. Kf2 {[%emt 0:03:20]} (10. Nde2 $16) 10... h5 {[%emt 0:06:23]} 11. h4 {[%emt 0:04:29]} Ng8 {[%emt 0:01:39]} 12. Bg5 {[%emt 0:12:11]} f6 {[%emt 0:02:15]} 13. Be3 {[%emt 0:00:25]} Ne7 {[%emt 0:03:21]} 14. Nce2 {[%emt 0:10:45]} Bc5 {[%emt 0:11:21]} (14... c5 15. Nb3 $16) 15. Rad1 {[%emt 0:14:47]} Qe8 {[%emt 0:04:13]} 16. c4 {[%emt 0:05:23]} (16. Nf4 {with more complications.} Ng6 17. Nxg6+ Qxg6 18. Ne2) 16... a5 {[%emt 0:06:32]} (16... Ng6 {is more complex.} 17. Nc2 Qe5 18. Qd2 a5) 17. Nf4 {[%emt 0:05:00]} Qf7 {[%emt 0:07:43] Inhibits Nde6+.} 18. Nc2 {[%emt 0:02:22] White is much more active. The black rooks are badly placed. Pair of Knights!} Bxe3+ {[%emt 0:01:39]} 19. Nxe3 {[%emt 0:00:05]} (19. Kxe3 f5 $11) 19... c5 {[%emt 0:03:04]} 20. Ned5 {[%emt 0:03:34]} Nxd5 {[%emt 0:03:01]} 21. exd5 {[%emt 0:00:11]} (21. cxd5 Kg8 $14) (21. Qxd5 Qxd5 22. Nxd5 Rc8 $11) 21... Rh6 {[%emt 0:00:24] Against Ng6+} 22. Rde1 {[%emt 0:01:22]} Kg8 {[%emt 0:03:59]} 23. Re3 {[%emt 0:02:22] And now Rhe1 would win.} Re8 {[%emt 0:00:37]} (23... g5 $16 {was called for.} 24. Ne6 gxh4) 24. Rhe1 $18 {[%emt 0:02:11] Hoping for Rxe8+.} Re5 {[%emt 0:00:46]} 25. Qb3 {[%emt 0:01:26] [#] Threatens to win with Qb8+.} Bf5 {[%emt 0:05:02]} 26. Qb8+ {[%emt 0:02:22]} Kh7 {[%emt 0:00:32]} 27. Qd8 {[%emt 0:01:06] Prevents Qe7.} a4 {[%emt 0:01:19]} (27... Qd7 {was worth a try.} 28. Qxd7 Bxd7) 28. g3 {[%emt 0:06:55]} Qd7 {[%emt 0:03:56]} 29. Qxd7 {[%emt 0:01:05]} Bxd7 {[%emt 0:00:02]} 30. Nd3 {[%emt 0:00:13]} Rxe3 {[%emt 0:00:07]} 31. Rxe3 {[%emt 0:00:03][%mdl 4096] Endgame KRB-KRN} ({Inferior is} 31. Kxe3 Kg6 $11) 31... Bf5 {[%emt 0:00:49]} 32. Nf4 {[%emt 0:00:51] aiming for Ne6.} Kg8 {[%emt 0:01:52]} 33. Re7 {[%emt 0:09:12]} g5 {[%emt 0:04:05]} 34. Ne6 {[%emt 0:00:08]} gxh4 {[%emt 0:00:11]} 35. gxh4 {[%emt 0:01:06] Rg7+ is the strong threat.} Bd3 $2 {[%emt 0:02:31] This move loses the game for Black.} (35... Bxe6 $16 {is more resistant.} 36. dxe6 f5) 36. b3 {[%emt 0:01:43]} axb3 {[%emt 0:00:19]} 37. axb3 {[%emt 0:00:04]} Bc2 {[%emt 0:00:10]} 38. Re8+ {[%emt 0:01:38]} Kf7 {[%emt 0:02:09]} 39. Rb8 {[%emt 0:00:55]} ({Less strong is} 39. Nxc7 Bxb3 40. Re6 Bxc4 $16) 39... Kg6 {[%emt 0:04:10]} (39... f5 $142 40. Nxc7 Rf6) 40. Nxc7 {[%emt 0:01:08]} Rh7 {[%emt 0:01:29]} 41. Nb5 {[%emt 0:34:40]} Rd7 {[%emt 0:31:27]} 42. Rb6 {[%emt 0:02:01]} Kf5 {[%emt 0:00:25]} (42... Bxb3 $142 43. Nxd6 (43. Rxd6 Rb7 $14) 43... Ba2) 43. Nxd6+ {[%emt 0:01:19]} Ke5 {[%emt 0:00:04] [#]} 44. Ke3 $1 {[%emt 0:00:00] Weighted Error Value: White=0.11 (very precise) /Black=0.45} 1-0

[Event "NC World Masters 2022"]
[Site "Dortmund"]
[Date "2022.07.22"]
[Round "4.1"]
[White "Anand, Viswanathan"]
[Black "Kollars, Dmitrij"]
[Result "1/2-1/2"]
[ECO "D32"]
[WhiteElo "2756"]
[BlackElo "2648"]
[Annotator "TA"]
[PlyCount "100"]
[EventDate "2022.07.18"]
[EventType "tourn"]
[EventCountry "GER"]
[SourceTitle "playchess.com"]
[Source "ChessBase"]
[SourceQuality "1"]
[TimeControl "40/5400+30:1800+30"]

{[%evp 11,100,39,35,30,18,27,32,33,18,0,69,43,51,21,50,21,22,16,25,-8,0,-12,0,-6,0,0,0,0,0,0,0,0,0,0,0,-8,0,0,0,0,0,0,0,0,0,0,17,0,0,0,0,0,31,0,0,7,35,27,27,20,25,29,36,0,0,0,0,0,0,0,0,0,0,0,0,0,0,0,0,0,0,0,0,0,0,0,0,0,0,0,0]} 1. c4 {[%emt 0:00:02]} e6 {[%emt 0:00:25]} 2. Nc3 {[%emt 0:00:51]} d5 {[%emt 0:00:17]} 3. d4 {[%emt 0:00:08]} c5 {[%emt 0:00:17]} 4. cxd5 {[%emt 0:01:10]} exd5 {[%emt 0:00:09]} 5. Nf3 {[%emt 0:00:14]} Nf6 {[%emt 0:00:27]} 6. Bg5 {[%emt 0:01:05]} Be6 {[%emt 0:00:26]} 7. dxc5 {[%emt 0:05:37] D32: Tarrasch Defence: Sidelines and lines without g3.} Bxc5 {[%emt 0:00:22]} 8. e3 {[%emt 0:00:09]} Nc6 {[%emt 0:03:18]} 9. Bb5 {[%emt 0:00:58] [#] White is slightly better.} Rc8 $146 {[%emt 0:05:23]} ({Predecessor:} 9... h6 10. Bxf6 Qxf6 11. Nxd5 Qxb2 12. Nc7+ Ke7 13. O-O Rad8 14. Qc1 Qxc1 15. Raxc1 Kd6 16. Nxe6 fxe6 {1-0 (41) Carlsen,M (2864)-Van Foreest,J (2715) chess24.com INT 2022}) 10. Nd4 {[%emt 0:06:08]} Kf8 {[%emt 0:08:17]} ({Black should try} 10... O-O $11) 11. Bxc6 {[%emt 0:04:43] White is more active.} bxc6 {[%emt 0:00:17]} 12. a3 {[%emt 0:00:20]} Be7 {[%emt 0:18:14]} 13. b4 {[%emt 0:06:20]} c5 {[%emt 0:03:08]} 14. bxc5 {[%emt 0:01:55]} Qa5 {[%emt 0:04:24]} 15. Qd2 {[%emt 0:00:14] [#] Hoping for c6.} ({But not} 15. Nxe6+ $2 fxe6 16. O-O Qxc3 $19) 15... Rxc5 {[%emt 0:03:39]} 16. Bxf6 {[%emt 0:00:21]} Bxf6 {[%emt 0:00:19]} 17. Nce2 {[%emt 0:00:05]} Qxd2+ {[%emt 0:04:37]} 18. Kxd2 {[%emt 0:00:08]} Ke7 {[%emt 0:00:07]} 19. Rhc1 {[%emt 0:00:36]} Rhc8 {[%emt 0:01:17]} 20. Rxc5 {[%emt 0:00:15]} Rxc5 {[%emt 0:00:04]} 21. Rb1 {[%emt 0:00:12]} Kd7 {[%emt 0:06:53]} 22. Nf4 {[%emt 0:09:15]} Ra5 {[%emt 0:03:52]} 23. Rb3 {[%emt 0:03:05]} Ra4 {[%emt 0:04:49]} 24. Nfe2 {[%emt 0:02:35]} Ra5 {[%emt 0:03:11]} 25. Nc3 {[%emt 0:01:34]} Be5 {[%emt 0:02:21]} 26. f4 {[%emt 0:03:50]} Bxd4 {[%emt 0:00:14]} 27. exd4 $11 {[%emt 0:00:04][%mdl 4096] Endgame KRB-KRN} Kc6 {[%emt 0:01:09]} 28. a4 {[%emt 0:03:03]} Ra6 {[%emt 0:02:00]} 29. Kc2 {[%emt 0:03:48]} Bf5+ {[%emt 0:01:28]} 30. Kb2 {[%emt 0:00:11]} Be4 {[%emt 0:01:44]} 31. g4 {[%emt 0:00:40]} Kc7 {[%emt 0:04:35]} 32. g5 {[%emt 0:00:30]} f6 {[%emt 0:01:37]} 33. Rb5 {[%emt 0:04:51]} fxg5 {[%emt 0:02:39]} 34. fxg5 {[%emt 0:00:16]} h6 {[%emt 0:00:19]} 35. h4 {[%emt 0:01:18]} hxg5 {[%emt 0:00:04]} 36. hxg5 {[%emt 0:00:11]} Rb6 {[%emt 0:02:58]} 37. a5 {[%emt 0:02:35]} Rxb5+ {[%emt 0:02:47] The position is equal.} 38. Nxb5+ {[%emt 0:00:08] KB-KN} Kc6 {[%emt 0:00:27]} 39. Nxa7+ {[%emt 0:01:26]} Kb7 {[%emt 0:00:09]} 40. Nb5 {[%emt 0:00:05] [#] Nd6+ is the strong threat.} Ka6 {[%emt 0:00:11][%csl LRa5,LRb5]} 41. Nc7+ {[%emt 0:31:35]} Kxa5 {[%emt 0:30:33]} 42. Kc3 $1 {[%emt 0:01:20]} g6 {[%emt 0:08:31]} 43. Ne8 {[%emt 0:02:39]} Kb5 {[%emt 0:02:25]} 44. Kd2 {[%emt 0:00:20] aiming for Ke3.} Kc6 {[%emt 0:00:00]} 45. Nf6 {[%emt 0:00:00]} Kd6 {[%emt 0:00:00]} 46. Ke3 $1 {[%emt 0:00:00]} Bf5 {[%emt 0:00:00]} 47. Kf4 {[%emt 0:00:00]} Bh3 {[%emt 0:00:00]} 48. Ne8+ {[%emt 0:00:00]} Kd7 {[%emt 0:00:00]} 49. Nf6+ {[%emt 0:00:00]} Kd6 {[%emt 0:00:00]} 50. Ne8+ {[%emt 0:00:00]} Kd7 {[%emt 0:00:00] Weighted Error Value: White=0.06 (flawless) /Black=0.07 (flawless)} 1/2-1/2

[Event "NC World Masters 2022"]
[Site "Dortmund"]
[Date "2022.07.22"]
[Round "4.2"]
[White "Fridman, Daniel"]
[Black "Adams, Michael"]
[Result "1/2-1/2"]
[ECO "B20"]
[WhiteElo "2599"]
[BlackElo "2696"]
[Annotator "TA"]
[PlyCount "88"]
[EventDate "2022.07.18"]
[EventType "tourn"]
[EventCountry "GER"]
[SourceTitle "playchess.com"]
[Source "ChessBase"]
[SourceQuality "1"]
[TimeControl "40/5400+30:1800+30"]

{[%evp 9,88,-22,0,-21,-2,-11,0,0,0,-21,-20,-50,-15,-56,-57,-56,-41,-55,-56,-82,-45,-48,-48,-51,-49,-47,-60,-55,-17,-17,-16,-14,-11,-14,0,0,0,0,0,0,0,0,0,0,0,0,0,0,0,0,0,-17,-17,-17,-17,-17,-17,-17,0,-13,0,-19,-18,-19,-18,-39,-13,-13,-13,-13,-13,-13,-13,-13,-13,-13,-13,-13,-13,-13,-13]} 1. e4 {[%emt 0:00:03]} c5 {[%emt 0:00:10]} 2. g3 {[%emt 0:00:14]} Nc6 {[%emt 0:00:35]} 3. Bg2 {[%emt 0:00:07]} e6 {[%emt 0:02:41]} 4. d3 {[%emt 0:00:52]} d5 {[%emt 0:02:56]} 5. f4 {[%emt 0:00:26] [#]} h5 $146 {[%emt 0:02:10]} ({Predecessor:} 5... d4 6. e5 Nge7 7. Nd2 Nd5 8. Ne4 Be7 9. c4 dxc3 10. bxc3 O-O 11. Ne2 b5 12. a4 bxa4 13. Qxa4 {1-0 (62) Balla,T (2348)-Halkias,S (2563) Chess.com INT 2020}) 6. Nf3 {[%emt 0:03:49] B20: Sicilian: Unusual White 2nd moves.} Be7 {[%emt 0:02:00]} 7. h3 {[%emt 0:01:54]} b6 {[%emt 0:01:50]} 8. Nc3 {[%emt 0:06:09]} Bb7 {[%emt 0:04:37]} 9. Kf2 {[%emt 0:12:08]} d4 {[%emt 0:11:10]} 10. Ne2 {[%emt 0:05:15]} Nf6 {[%emt 0:02:07]} 11. c4 {[%emt 0:15:13]} dxc3 {[%emt 0:01:49]} 12. Nxc3 {[%emt 0:00:20]} Nb4 {[%emt 0:05:48]} 13. Ne1 {[%emt 0:03:27]} ({Wrong is} 13. Qa4+ $2 Bc6 14. Qd1 Nxd3+ 15. Kg1 c4 $19) 13... Qd7 {[%emt 0:06:52]} 14. Be3 {[%emt 0:01:05]} Rd8 {[%emt 0:01:38]} 15. a3 {[%emt 0:03:54]} Nxd3+ {[%emt 0:09:45]} 16. Nxd3 {[%emt 0:00:08]} Qxd3 {[%emt 0:00:04]} 17. Qxd3 {[%emt 0:04:23]} Rxd3 {[%emt 0:00:02]} 18. Rhd1 {[%emt 0:00:10]} Rxc3 {[%emt 0:09:26]} 19. bxc3 {[%emt 0:00:09]} Nxe4+ {[%emt 0:00:05]} 20. Bxe4 {[%emt 0:06:12]} Bxe4 {[%emt 0:00:02]} 21. a4 {[%emt 0:00:44]} f5 {[%emt 0:07:03]} 22. a5 {[%emt 0:11:16]} h4 {[%emt 0:05:31]} 23. axb6 {[%emt 0:00:07]} hxg3+ {[%emt 0:05:04]} 24. Kxg3 {[%emt 0:00:07]} axb6 {[%emt 0:00:04]} 25. Ra6 {[%emt 0:00:08]} Rh6 {[%emt 0:05:45] [#] White must now prevent ...Rg6+.} 26. Rxb6 {[%emt 0:01:22] Threatens to win with Rb8+.} Rg6+ {[%emt 0:04:34]} 27. Kf2 {[%emt 0:00:07]} Bh4+ {[%emt 0:01:59] This bishop pair is nice.} 28. Ke2 {[%emt 0:05:08] Hoping for Rb8+.} Rg2+ {[%emt 0:00:40]} 29. Kf1 {[%emt 0:00:06]} Rg3 {[%emt 0:01:55][%csl LRe3,LRh3]} 30. Rxe6+ {[%emt 0:10:07]} Kf7 {[%emt 0:00:13]} 31. Rxe4 {[%emt 0:00:07]} fxe4 $11 {[%emt 0:00:02][%mdl 4096] Endgame KRB-KRB} 32. Ke2 {[%emt 0:00:25]} Rg2+ {[%emt 0:00:05]} 33. Kf1 {[%emt 0:00:06]} Rg3 {[%emt 0:00:09]} 34. Ke2 {[%emt 0:00:05]} Rg2+ {[%emt 0:01:37]} 35. Kf1 {[%emt 0:00:07]} Rc2 {[%emt 0:00:47]} 36. Rd5 {[%emt 0:06:59]} Rxc3 {[%emt 0:00:47]} 37. Ke2 {[%emt 0:00:12]} c4 {[%emt 0:03:12] With the idea ...Rc2+.} 38. Rd4 {[%emt 0:01:08] The position is equal.} Bf6 {[%emt 0:01:02]} 39. Rxe4 {[%emt 0:00:07]} Kg6 {[%emt 0:00:21]} 40. Bd4 {[%emt 0:03:49] [#]} Kf5 $1 {[%emt 0:03:09]} 41. Bxf6 {[%emt 0:30:08]} gxf6 {[%emt 0:01:27]} 42. Rd4 {[%emt 0:00:00]} Rxh3 {[%emt 0:00:45]} 43. Rxc4 {[%emt 0:00:00]} Kg4 {[%emt 0:00:04]} 44. f5+ {[%emt 0:00:00]} Kxf5 {[%emt 0:00:05] Weighted Error Value: White=0.06 (flawless) /Black=0.06 (flawless)} 1/2-1/2

[Event "NC World Masters 2022"]
[Site "Dortmund"]
[Date "2022.07.23"]
[Round "5.1"]
[White "Fridman, Daniel"]
[Black "Anand, Viswanathan"]
[Result "1/2-1/2"]
[ECO "B13"]
[WhiteElo "2599"]
[BlackElo "2756"]
[Annotator "TA"]
[PlyCount "53"]
[EventDate "2022.07.18"]
[EventType "tourn"]
[EventCountry "GER"]
[SourceTitle "playchess.com"]
[Source "ChessBase"]
[SourceQuality "1"]
[TimeControl "40/5400+30:1800+30"]

{[%evp 14,53,6,2,7,7,39,35,33,36,36,26,69,42,48,45,79,0,0,0,0,0,0,0,0,0,0,0,12,0,0,0,0,0,3,0,0,0,20,0,12,0]} 1. Nf3 {[%emt 0:00:02]} Nf6 {[%emt 0:00:23]} 2. e3 {[%emt 0:00:13]} c5 {[%emt 0:00:17]} 3. d4 {[%emt 0:00:07]} cxd4 {[%emt 0:00:52]} 4. exd4 {[%emt 0:00:07]} d5 {[%emt 0:00:08]} 5. c4 {[%emt 0:02:10]} Nc6 {[%emt 0:00:50]} 6. Nc3 {[%emt 0:00:08]} Bg4 {[%emt 0:00:14]} 7. Be3 {[%emt 0:02:08]} e6 {[%emt 0:07:58]} 8. c5 {[%emt 0:01:39]} a6 {[%emt 0:02:01] Against Bb5. B13: Caro-Kann: Exchange Variation and Panov-Botvinnik Attack.} 9. Be2 {[%emt 0:06:26]} (9. Bd3 {keeps more tension.} Nd7 10. O-O Nxc5 11. dxc5 d4 12. h3) 9... Bxf3 {[%emt 0:00:29]} 10. Bxf3 {[%emt 0:00:22]} g6 {[%emt 0:00:12] [#] White is slightly better.} 11. b4 $146 {[%emt 0:04:44]} ({Predecessor:} 11. O-O Bg7 12. Na4 Nd7 13. Rb1 Qf6 14. Qb3 b5 15. cxb6 Nxd4 16. Bxd4 Qxd4 17. Rbd1 {1-0 (28) Aydin,H (2029)-Bulut,M (1762) Antalya 2017}) 11... Bg7 {[%emt 0:00:13]} 12. Rb1 {[%emt 0:00:51]} Kf8 {[%emt 0:01:10]} 13. a4 {[%emt 0:06:07]} h5 {[%emt 0:03:08][%cal Of6g4]} 14. h3 {[%emt 0:07:10] Inhibits Ng4.} Ne7 {[%emt 0:05:58]} 15. g4 {[%emt 0:06:44] White is more active.} (15. Qd2 $16) 15... hxg4 $11 {[%emt 0:08:22] The position is equal.} 16. hxg4 {[%emt 0:00:07]} Rxh1+ {[%emt 0:00:05]} 17. Bxh1 {[%emt 0:00:07]} b6 {[%emt 0:00:20]} 18. Kf1 {[%emt 0:08:08]} Nd7 {[%emt 0:06:23]} 19. Ne2 {[%emt 0:02:26]} bxc5 {[%emt 0:01:46]} 20. bxc5 {[%emt 0:02:46]} Rb8 {[%emt 0:05:52]} 21. Bf3 {[%emt 0:03:25]} Nc6 {[%emt 0:02:26]} 22. g5 {[%emt 0:03:03]} Rxb1 {[%emt 0:03:43]} 23. Qxb1 {[%emt 0:00:09]} Qb8 {[%emt 0:00:06] Against Qb7} 24. Qd3 {[%emt 0:02:22]} Nb4 {[%emt 0:03:04]} 25. Qb1 {[%emt 0:01:42]} Nc6 {[%emt 0:00:58]} 26. Qd3 {[%emt 0:00:07]} Nb4 {[%emt 0:02:02]} 27. Qb1 {[%emt 0:01:05] Weighted Error Value: White=0.10 (very precise) /Black=0.07 (flawless)} 1/2-1/2

[Event "NC World Masters 2022"]
[Site "Dortmund"]
[Date "2022.07.23"]
[Round "5.2"]
[White "Adams, Michael"]
[Black "Kollars, Dmitrij"]
[Result "1/2-1/2"]
[ECO "B59"]
[WhiteElo "2696"]
[BlackElo "2648"]
[Annotator "TA"]
[PlyCount "80"]
[EventDate "2022.07.18"]
[EventType "tourn"]
[EventCountry "GER"]
[SourceTitle "playchess.com"]
[Source "ChessBase"]
[SourceQuality "1"]
[TimeControl "40/5400+30:1800+30"]

{[%evp 21,80,0,7,-1,25,-8,0,0,0,0,4,0,19,0,12,15,10,3,5,5,5,5,5,6,6,6,7,7,8,5,7,7,6,6,3,6,13,8,8,8,8,3,8,8,16,0,0,0,0,0,0,0,0,-8,0,-8,0,0,0,-8,0]} 1. e4 {[%emt 0:00:04]} c5 {[%emt 0:00:17]} 2. Nf3 {[%emt 0:00:08]} Nc6 {[%emt 0:00:09]} 3. d4 {[%emt 0:01:13]} cxd4 {[%emt 0:00:18]} 4. Nxd4 {[%emt 0:00:06]} Nf6 {[%emt 0:00:21]} 5. Nc3 {[%emt 0:00:49]} d6 {[%emt 0:00:19]} 6. Be2 {[%emt 0:01:22]} e5 {[%emt 0:00:44]} 7. Nb3 {[%emt 0:03:20]} Be6 {[%emt 0:01:57]} 8. Be3 {[%emt 0:02:41]} Be7 {[%emt 0:04:19]} 9. f3 {[%emt 0:02:19]} d5 {[%emt 0:10:39]} 10. exd5 {[%emt 0:01:06]} Nxd5 {[%emt 0:00:13]} 11. Nxd5 {[%emt 0:01:10]} Bxd5 {[%emt 0:01:07]} 12. Qd2 {[%emt 0:11:01] [#] B59: Classical Sicilian: 6 Be2 e5 7 Nb3.} f6 $146 {[%emt 0:08:12]} ({Predecessor:} 12... f5 13. O-O-O Bxb3 14. Qxd8+ Rxd8 15. Rxd8+ Kxd8 16. Rd1+ Kc7 17. axb3 Rd8 18. Rxd8 Kxd8 19. Bb5 Nd4 20. Bxd4 {½-½ (39) Mogranzini,R-Comp Fritz 3 Italy 1995}) 13. Kf2 {[%emt 0:08:01]} Kf7 {[%emt 0:03:27] The position is equal.} 14. Rhd1 {[%emt 0:00:40]} Be6 {[%emt 0:00:18]} 15. Nc5 {[%emt 0:01:10]} Bxc5 {[%emt 0:03:00]} 16. Bxc5 {[%emt 0:00:06]} Qc7 {[%emt 0:07:01]} 17. Qd6 {[%emt 0:12:37]} Rac8 {[%emt 0:10:52]} 18. Qxc7+ {[%emt 0:05:23]} Rxc7 {[%emt 0:00:04]} 19. Rd2 {[%emt 0:03:53]} Rd8 {[%emt 0:02:39]} 20. Rad1 {[%emt 0:01:42]} Rxd2 {[%emt 0:00:21]} 21. Rxd2 {[%emt 0:00:02]} b6 {[%emt 0:04:48]} 22. Bd6 {[%emt 0:01:13]} Rc8 {[%emt 0:00:12]} 23. Ba6 {[%emt 0:03:59]} Rd8 {[%emt 0:00:42]} 24. b3 {[%emt 0:04:57]} g5 {[%emt 0:07:04]} 25. c3 {[%emt 0:06:47]} h5 {[%emt 0:02:23]} 26. Ke1 {[%emt 0:01:44]} h4 {[%emt 0:03:46]} 27. Ba3 {[%emt 0:03:26]} Rxd2 {[%emt 0:09:19]} 28. Kxd2 $11 {[%emt 0:00:03][%mdl 4096] Endgame KBB-KBN} Bd5 {[%emt 0:00:37][%cal Oh4h3]} 29. Ke3 {[%emt 0:06:51]} Ne7 {[%emt 0:01:02]} 30. Bd3 {[%emt 0:02:46]} Ke6 {[%emt 0:01:02]} 31. g4 {[%emt 0:01:56]} hxg3 {[%emt 0:04:15]} 32. hxg3 {[%emt 0:00:02]} f5 {[%emt 0:01:44][%cal Bf6f5,Bf5f4][%mdl 32]} 33. f4 {[%emt 0:06:03]} gxf4+ {[%emt 0:02:46]} 34. gxf4 {[%emt 0:00:02]} Ng6 {[%emt 0:00:17]} 35. fxe5 {[%emt 0:00:30]} f4+ {[%emt 0:00:59]} 36. Kd4 {[%emt 0:02:29]} Nxe5 {[%emt 0:00:13][%cal Re5c6] [#]} 37. Bf1 {[%emt 0:01:23] Hoping for Bh3+.} Nf3+ {[%emt 0:03:08]} 38. Kd3 {[%emt 0:00:02]} Ne5+ {[%emt 0:02:13]} 39. Kd4 {[%emt 0:00:08] Black must now prevent Bh3+.} Nf3+ {[%emt 0:01:30]} 40. Kd3 {[%emt 0:00:01]} Ne5+ {[%emt 0:01:51] A balanced but interesting game.  Weighted Error Value: White=0.05 (flawless) /Black=0.04 (flawless)} 1/2-1/2

[Event "NC World Masters 2022"]
[Site "Dortmund"]
[Date "2022.07.24"]
[Round "6.1"]
[White "Anand, Viswanathan"]
[Black "Adams, Michael"]
[Result "1/2-1/2"]
[ECO "D35"]
[WhiteElo "2756"]
[BlackElo "2696"]
[Annotator "TA"]
[PlyCount "86"]
[EventDate "2022.07.18"]
[EventType "tourn"]
[EventCountry "GER"]
[SourceTitle "playchess.com"]
[Source "ChessBase"]
[SourceQuality "1"]
[TimeControl "40/5400+30:1800+30"]

{[%evp 15,86,16,21,7,4,7,10,6,44,2,8,10,11,0,0,0,0,-4,-2,-16,-13,-25,-28,-25,-21,-14,-29,-29,-27,-22,-14,-24,-33,-23,-20,-26,-33,-26,-14,-18,-11,-28,-18,-11,-11,-14,-8,-7,-12,-37,-41,-35,-42,-73,0,0,0,0,0,0,0,0,0,0,0,0,0,0,0,0,0,0,0]} 1. c4 {[%emt 0:00:02]} e6 {[%emt 0:00:07]} 2. Nc3 {[%emt 0:00:13]} d5 {[%emt 0:00:07]} 3. d4 {[%emt 0:00:06]} Nf6 {[%emt 0:00:05]} 4. cxd5 {[%emt 0:00:32]} exd5 {[%emt 0:00:07]} 5. Bg5 {[%emt 0:00:12]} c6 {[%emt 0:00:37]} 6. e3 {[%emt 0:01:22]} Be7 {[%emt 0:00:37]} 7. Bd3 {[%emt 0:00:16]} Nbd7 {[%emt 0:00:17][%cal Bb8d7,Bd7f8,Bf8e6][%mdl 32]} 8. Nf3 {[%emt 0:01:39]} Nf8 {[%emt 0:03:17]} 9. h3 {[%emt 0:03:15] D35: Queen's Gambit Declined: Exchange Variation.} Ne6 {[%emt 0:00:54]} 10. Bh4 {[%emt 0:00:33]} g6 {[%emt 0:01:24]} 11. Bg3 {[%emt 0:02:00] [#]} Kf8 $146 {[%emt 0:04:05]} ({Predecessor:} 11... Ng7 12. Qb3 Qb6 13. Qxb6 axb6 14. Bh2 O-O 15. Ne5 Bf5 16. Be2 Bb4 17. g4 Bxc3+ 18. bxc3 {1-0 (38) Djukic,S (2029)-Milic,S (2247) Budva 2004}) 12. Ke2 {[%emt 0:04:11]} Bd6 {[%emt 0:04:58]} 13. Bxd6+ {[%emt 0:01:46]} Qxd6 {[%emt 0:00:03]} 14. Qg1 {[%emt 0:02:06]} Kg7 {[%emt 0:15:31]} 15. Qh2 {[%emt 0:00:19]} Qxh2 {[%emt 0:00:42]} 16. Rxh2 {[%emt 0:00:07]} Re8 {[%emt 0:00:08][%cal Bh8e8,Be8e4,Be4e5,Be5d5][%mdl 32]} 17. Kd2 {[%emt 0:09:00]} Ne4+ {[%emt 0:09:03]} (17... b6 {seems wilder.} 18. b4 a5 19. bxa5 Rxa5 20. Rhh1 c5) 18. Bxe4 {[%emt 0:00:11]} dxe4 {[%emt 0:00:05]} 19. Nxe4 {[%emt 0:00:12] [#]} Nxd4 $1 {[%emt 0:00:19]} 20. Nxd4 {[%emt 0:00:16] Threatens to win with Nc3.} Rxe4 {[%emt 0:00:05]} 21. Rc1 {[%emt 0:01:22]} Re5 {[%emt 0:02:20]} 22. Rhh1 {[%emt 0:01:41]} c5 {[%emt 0:02:37]} 23. Nf3 {[%emt 0:02:01]} Rd5+ {[%emt 0:00:13]} 24. Ke2 {[%emt 0:00:41]} b6 {[%emt 0:05:27]} 25. Rhd1 $1 {[%emt 0:00:10]} Ba6+ {[%emt 0:03:04]} 26. Ke1 {[%emt 0:00:08]} Rad8 {[%emt 0:00:21]} 27. Rxd5 {[%emt 0:00:25]} Rxd5 $11 {[%emt 0:00:02][%mdl 4096] Endgame KRB-KRN} 28. a3 {[%emt 0:04:05]} Kf6 {[%emt 0:07:59]} 29. b4 {[%emt 0:01:50]} Rd3 {[%emt 0:01:18]} 30. bxc5 {[%emt 0:00:46]} bxc5 {[%emt 0:00:51]} 31. Rxc5 {[%emt 0:10:10] [#] Black must now prevent Rc6+.} Rxa3 {[%emt 0:00:14]} 32. Rc6+ {[%emt 0:00:29]} Kg7 {[%emt 0:00:44]} 33. Rc1 {[%emt 0:00:20]} Bb7 {[%emt 0:05:48]} 34. Kf1 {[%emt 0:04:42]} Bxf3 {[%emt 0:15:59]} (34... a5 $17) 35. gxf3 $17 {[%emt 0:00:08] KR-KR. The position is equal.} Ra5 {[%emt 0:00:08]} 36. Rc7 {[%emt 0:00:08]} Rh5 {[%emt 0:00:07]} 37. Rxa7 {[%emt 0:00:06]} Rxh3 {[%emt 0:00:03]} 38. Kg2 {[%emt 0:00:07]} Rh5 {[%emt 0:00:03]} 39. f4 {[%emt 0:00:07]} Rb5 {[%emt 0:00:23]} 40. Rc7 {[%emt 0:00:08]} Rb4 {[%emt 0:00:17]} 41. Ra7 {[%emt 0:30:06]} Rb5 {[%emt 0:30:03]} 42. Rc7 {[%emt 0:00:07]} Rb4 {[%emt 0:00:04]} 43. Ra7 {[%emt 0:00:07]} Rb5 {[%emt 0:00:04] Weighted Error Value: White=0.05 (flawless) /Black=0.05 (flawless)} 1/2-1/2